fUSD/lending_fUSD_20241223
["ID","MTS","AMOUNT","RATE_DAILY","PERIOD"]
[346381354,1734928243900,-645.02476873,0.00019451,2]
[346381356,1734928243909,-645.02476872,0.00019452,2]
[346381358,1734928243920,-500.0,0.00019452,2]
[346381359,1734928243929,-1695.75,0.00019452,2]
[346381360,1734928243939,-1642.04,0.00019452,2]
[346381361,1734928243949,-1743.11,0.00019452,2]
[346381362,1734928243958,-2576.49,0.00019452,2]
[346381363,1734928243967,-10885.2,0.00019452,2]
[346381364,1734928243976,-1167.27,0.00019452,2]
[346381365,1734928243986,-500.0,0.00019452,2]
[346381366,1734928243995,-1419.17,0.00019452,2]
[346381367,1734928244006,-967.79,0.00019452,2]
[346381368,1734928244016,-1226.76,0.00019452,2]
[346381369,1734928244025,-1081.76,0.00019452,2]
[346381370,1734928244035,-500.0,0.00019452,2]
[346381371,1734928244044,-1969.81,0.00019452,2]
[346381372,1734928244053,-636.78,0.00019452,2]
[346381373,1734928244062,-9648.37,0.00019452,2]
[346381374,1734928244073,-1939.23,0.00019452,2]
[346381375,1734928244083,-1403.84,0.00019452,2]
[346381376,1734928244092,-1626.94,0.00019452,2]
[346381377,1734928244102,-500.0,0.00019452,2]
[346381378,1734928244111,-507.71494474,0.00019452,2]
[346381379,1734928244120,-3571.66,0.00019452,2]
[346381380,1734928244129,-3779.63,0.00019452,2]
[346381381,1734928244139,-4640.49,0.00019452,2]
[346381382,1734928244148,-723.23,0.00019452,2]
[346381383,1734928244158,-1315.43,0.00019452,2]
[346381384,1734928244167,-1232.64,0.00019452,2]
[346381385,1734928244177,-2452.33,0.00019452,2]
[346381386,1734928244186,-2217.72,0.00019452,2]
[346381387,1734928244196,-2542.86,0.00019452,2]
[346381388,1734928244205,-500.0,0.00019452,2]
[346381389,1734928244215,-2737.62,0.00019452,2]
[346381390,1734928244224,-500.0,0.00019452,2]
[346381391,1734928244234,-500.0,0.00019452,2]
[346381392,1734928244243,-1055.05,0.00019452,2]
[346381393,1734928244252,-500.0,0.00019452,2]
[346381394,1734928244261,-500.0,0.00019452,2]
[346381395,1734928244271,-500.0,0.00019452,2]
[346381396,1734928244279,-500.0,0.00019452,2]
[346381397,1734928244289,-1777.32,0.00019452,2]
[346381398,1734928244298,-500.0,0.00019452,2]
[346381399,1734928244308,-506.78947005,0.00019452,2]
[346381400,1734928244317,-888.73,0.00019452,2]
[346381401,1734928244327,-500.0,0.00019452,2]
[346381402,1734928244336,-7914.96,0.00019452,2]
[346381403,1734928244345,-1118.44,0.00019452,2]
[346381404,1734928244354,-500.0,0.00019452,2]
[346381405,1734928244363,-502.0,0.00019452,2]
[346381406,1734928244372,-595.63587074,0.00019452,2]
[346381407,1734928244381,-4685.88782363,0.00019453,2]
[346381408,1734928244391,-6040.006,0.00019454,2]
[346381409,1734928244400,-263.401,0.00019454,2]
[346381410,1734928244409,-240.58549975,0.00019457,2]
[346381411,1734928244418,-595.63587074,0.00019457,2]
[346381412,1734928244427,-210.06667936,0.00019462,2]
[346381413,1734928244437,-645.02476872,0.00019466,2]
[346381414,1734928244447,-240.58549975,0.00019467,2]
[346381415,1734928244457,-13880.64625133,0.00019468,2]
[346381416,1734928244466,-5164.83021715,0.00019468,2]
[346381417,1734928244477,-645.02476872,0.00019469,2]
[346381418,1734928244488,-13880.64625133,0.0001947,2]
[346381419,1734928244498,-240.58549975,0.0001947,2]
[346381420,1734928244508,-4685.88782363,0.0001947,2]
[346381421,1734928244518,-13880.64625133,0.00019471,2]
[346381422,1734928244527,-645.02476872,0.00019471,2]
[346381423,1734928244537,-5164.83021715,0.00019471,2]
[346381424,1734928244547,-645.02476873,0.00019472,2]
[346381425,1734928244556,-42571.63473564,0.00019473,2]
[346381426,1734928244566,-5164.83021715,0.00019475,2]
[346381427,1734928244580,-5164.83021715,0.00019475,2]
[346381428,1734928244590,-13880.64625133,0.00019476,2]
[346381429,1734928244600,-645.02476872,0.00019477,2]
[346381430,1734928244610,-595.63587074,0.00019478,2]
[346381431,1734928244621,-645.02476873,0.00019478,2]
[346381432,1734928244635,-595.63587074,0.0001948,2]
[346381433,1734928244647,-42571.63473564,0.00019481,2]
[346381434,1734928244807,-240.58549975,0.00019481,2]
[346381435,1734928244817,-5164.83021715,0.00019483,2]
[346381436,1734928244828,-4685.88782363,0.00019485,2]
[346381437,1734928244837,-595.63587074,0.00019486,2]
[346381438,1734928244846,-42571.63473564,0.00019489,2]
[346381439,1734928244855,-13880.64625133,0.00019491,2]
[346381440,1734928244864,-240.58549975,0.00019491,2]
[346381441,1734928244873,-645.02476873,0.00019492,2]
[346381442,1734928244883,-4685.88782363,0.00019492,2]
[346381443,1734928244891,-13880.64625133,0.00019492,2]
[346381444,1734928244900,-4685.88782363,0.00019494,2]
[346381445,1734928244910,-595.63587074,0.00019495,2]
[346381446,1734928244919,-240.58549975,0.00019495,2]
[346381447,1734928244928,-4685.88782363,0.00019497,2]
[346381448,1734928244938,-200.0,0.00019498,2]
[346381449,1734928244947,-3295.38787931,0.00019499,2]
[346381450,1734928244956,-164.25579756,0.000195,2]
[346381451,1734928244965,-164.25579756,0.000195,2]
[346381452,1734928244974,-164.25,0.000195,2]
[346381453,1734928244985,-29669.167392,0.000195,2]
[346381454,1734928244994,-5800.0,0.000195,2]
[346381455,1734928245003,-15571.33166111,0.000195,2]
[346381456,1734928245012,-210.06667936,0.000195,2]
[346381457,1734928245022,-441.45082535,0.000195,2]
[346381458,1734928245031,-226.85653754,0.000195,2]
[346381459,1734928245040,-19327.94157302,0.000195,2]
[346381460,1734928245049,-4478.04733354,0.000195,2]
[346381461,1734928245058,-500.0,0.00019502,2]
[346381462,1734928245067,-500.0,0.00019502,2]
[346381463,1734928245077,-500.0,0.00019502,2]
[346381464,1734928245086,-500.0,0.00019502,2]
[346381465,1734928245096,-500.0,0.00019502,2]
[346381466,1734928245105,-439.2466,0.00019502,2]
[346381467,1734928245114,-1000.0,0.00019502,2]
[346381468,1734928245123,-1000.0,0.00019502,2]
[346381469,1734928245132,-1000.0,0.00019502,2]
[346381470,1734928245141,-1000.0,0.00019502,2]
[346381471,1734928245150,-1000.0,0.00019502,2]
[346381472,1734928245159,-1000.0,0.00019502,2]
[346381473,1734928245168,-1000.0,0.00019502,2]
[346381474,1734928245177,-1000.0,0.00019502,2]
[346381475,1734928245187,-1000.0,0.00019502,2]
[346381476,1734928245196,-1000.0,0.00019502,2]
[346381477,1734928245205,-1000.0,0.00019502,2]
[346381478,1734928245215,-1000.0,0.00019502,2]
[346381479,1734928245224,-1000.0,0.00019502,2]
[346381480,1734928245233,-1000.0,0.00019502,2]
[346381481,1734928245242,-1000.0,0.00019502,2]
[346381482,1734928245251,-1000.0,0.00019502,2]
[346381483,1734928245261,-1000.0,0.00019502,2]
[346381484,1734928245270,-1000.0,0.00019502,2]
[346381485,1734928245280,-1000.0,0.00019502,2]
[346381486,1734928245289,-1000.0,0.00019502,2]
[346381487,1734928245298,-1000.0,0.00019502,2]
[346381488,1734928245307,-1000.0,0.00019502,2]
[346381489,1734928245316,-1000.0,0.00019502,2]
[346381490,1734928245327,-1000.0,0.00019502,2]
[346381491,1734928245336,-1000.0,0.00019502,2]
[346381492,1734928245345,-1000.0,0.00019502,2]
[346381493,1734928245354,-1000.0,0.00019502,2]
[346381494,1734928245364,-1000.0,0.00019502,2]
[346381495,1734928245373,-1000.0,0.00019502,2]
[346381496,1734928245382,-1000.0,0.00019502,2]
[346381497,1734928245391,-1000.0,0.00019502,2]
[346381498,1734928245401,-1000.0,0.00019502,2]
[346381499,1734928245410,-1000.0,0.00019502,2]
[346381500,1734928245423,-1000.0,0.00019502,2]
[346381501,1734928245439,-1000.0,0.00019502,2]
[346381502,1734928245448,-1000.0,0.00019502,2]
[346381503,1734928245457,-1000.0,0.00019502,2]
[346381504,1734928245467,-1000.0,0.00019502,2]
[346381505,1734928245476,-1000.0,0.00019502,2]
[346381506,1734928245485,-1000.0,0.00019502,2]
[346381507,1734928245495,-1000.0,0.00019502,2]
[346381508,1734928245504,-1000.0,0.00019502,2]
[346381509,1734928245514,-912.9907,0.00019502,2]
[346381510,1734928245523,-502.80790497,0.00019521,2]
[346381511,1734928245532,-640.11227333,0.00019521,2]
[346381512,1734928245542,-1000.0,0.00019521,2]
[346381513,1734928245550,-1415.0,0.00019562,2]
[346381514,1734928245560,-25009.11245843,0.0001957,2]
[346381515,1734928245569,-502.91161031,0.00019573,2]
[346381516,1734928245580,-500.83205175,0.00019573,2]
[346381517,1734928245590,-164.08468289,0.00019573,2]
[346381518,1734928245599,-501.43939903,0.00019573,2]
[346381519,1734928245609,-500.0,0.00019573,2]
[346381520,1734928245622,-500.89531538,0.00019573,2]
[346381521,1734928245633,-159.74298944,0.00019573,2]
[346381522,1734928245642,-500.0,0.00019573,2]
[346381523,1734928245652,-500.42433932,0.00019573,2]
[346381524,1734928245661,-500.0,0.00019573,2]
[346381525,1734928245671,-504.92020399,0.00019573,2]
[346381526,1734928245680,-444.122313,0.00019594,2]
[346381527,1734928245690,-444.122313,0.00019594,2]
[346381528,1734928245700,-444.122313,0.00019594,2]
[346381529,1734928245710,-408.122313,0.00019594,3]
[346381530,1734928245720,-444.122313,0.00019595,3]
[346381531,1734928245730,-444.122313,0.00019595,3]
[346381532,1734928245739,-444.122313,0.00019595,3]
[346381533,1734928245749,-444.122313,0.00019595,3]
[346381534,1734928245759,-444.122313,0.00019595,3]
[346381535,1734928245769,-444.122313,0.00019595,2]
[346381536,1734928245778,-444.122313,0.00019595,2]
[346381537,1734928245787,-444.122313,0.00019595,2]
[346381538,1734928245797,-444.122313,0.00019595,2]
[346381539,1734928245806,-444.122313,0.00019595,2]
[346381540,1734928245815,-444.122313,0.00019596,2]
[346381541,1734928245828,-444.122313,0.00019596,2]
[346381542,1734928245836,-444.122313,0.00019596,2]
[346381543,1734928245846,-444.122313,0.00019596,2]
[346381544,1734928245856,-444.122313,0.00019596,2]
[346381545,1734928245866,-444.122313,0.00019596,3]
[346381546,1734928245875,-444.122313,0.00019596,3]
[346381547,1734928245885,-444.122313,0.00019596,3]
[346381548,1734928245894,-444.122313,0.00019596,3]
[346381549,1734928245904,-444.122313,0.00019596,3]
[346381550,1734928245913,-444.122313,0.00019597,3]
[346381551,1734928245923,-444.122313,0.00019597,3]
[346381552,1734928245932,-444.122313,0.00019597,3]
[346381553,1734928245942,-444.122313,0.00019597,3]
[346381554,1734928245951,-444.122313,0.00019597,3]
[346381555,1734928245960,-444.122313,0.00019597,2]
[346381556,1734928245969,-444.122313,0.00019597,2]
[346381557,1734928245978,-444.122313,0.00019597,2]
[346381558,1734928245987,-444.122313,0.00019597,2]
[346381559,1734928245997,-444.122313,0.00019597,2]
[346381560,1734928246006,-268.99286703,0.00019597,2]
[346381561,1734928246015,-444.122313,0.00019598,2]
[346381562,1734928246024,-444.122313,0.00019598,2]
[346381563,1734928246034,-444.122313,0.00019598,2]
[346381564,1734928246043,-444.122313,0.00019598,2]
[346381565,1734928246052,-444.122313,0.00019598,2]
[346381566,1734928246061,-444.122313,0.00019598,3]
[346381567,1734928246072,-444.122313,0.00019598,3]
[346381568,1734928246082,-444.122313,0.00019598,3]
[346381569,1734928246091,-444.122313,0.00019598,3]
[346381570,1734928246101,-444.122313,0.00019598,3]
[346381571,1734928246110,-152.52115859,0.00019599,2]
[346381572,1734928246119,-1002.1948,0.00019599,2]
[346381573,1734928246128,-735.85,0.00019599,2]
[346381575,1734928246137,-26984.5997021,0.00019599,7]
[346381576,1734928246146,-1000.0,0.00019599,2]
[346381577,1734928246155,-1000.0,0.00019599,2]
[346381578,1734928246165,-1000.0,0.00019599,2]
[346381579,1734928246174,-1000.0,0.00019599,2]
[346381580,1734928246183,-1000.0,0.00019599,2]
[346381581,1734928246192,-1000.0,0.00019599,2]
[346381582,1734928246202,-1000.0,0.00019599,2]
[346381583,1734928246212,-1000.0,0.00019599,2]
[346381585,1734928246221,-1000.0,0.00019599,2]
[346381587,1734928246231,-3678.13,0.00019599,2]
[346381588,1734928246241,-1966.03,0.00019599,2]
[346381589,1734928246253,-52739.60756904,0.00019599,2]
[346381590,1734928246262,-3749.95,0.00019599,2]
[346381591,1734928246271,-300.0,0.00019599,2]
[346381592,1734928246281,-666.0,0.00019599,2]
[346381593,1734928246290,-378.86774927,0.00019599,2]
[346381594,1734928246300,-300.0,0.00019599,2]
[346381595,1734928246310,-300.0,0.00019599,2]
[346381596,1734928246319,-666.0,0.00019599,2]
[346381597,1734928246331,-1344.2,0.00019599,2]
[346381598,1734928246340,-1706.0,0.00019599,2]
[346381599,1734928246349,-4530924.7640412,0.000196,3]
[346381600,1734928246359,-29716.83646219,0.000196,3]
[346381601,1734928246368,-16544.39486439,0.000196,2]
[346381602,1734928246378,-11126411.26015728,0.000196,2]
[346381603,1734928246695,-50648.46099952,0.000196,2]
[346381604,1734928246707,-852.99136144,0.000196,2]
[346381605,1734928246720,-7240.21721996,0.000196,2]
[346381608,1734928246739,-713.46257013,0.000196,2]
[346381610,1734928247148,-500.0,0.00019178,2]
[346381611,1734928247157,-265.91422428,0.00019361,2]
[346381612,1734928247168,-234.08577572,0.00019361,2]
[346381613,1734928247177,-500.0,0.00019361,2]
[346381614,1734928247186,-485.52976114,0.00019362,2]
[346381615,1734928247197,-14.47023886,0.00019362,2]
[346381616,1734928247205,-1308.59,0.00019362,2]
[346381617,1734928247215,-150.0,0.00019599,2]
[346381618,1734928247225,-451.72936914,0.000196,2]
[346381619,1734928247281,-1433.2,0.000196,2]
[346381620,1734928247299,-89297.13995264,0.000196,2]
[346381621,1734928247310,-2016.5,0.000196,2]
[346381622,1734928247326,-3578.50931283,0.000196,2]
[346381623,1734928247341,-5350.31300886,0.000196,2]
[346381624,1734928248020,-500.0,0.00019178,2]
[346381625,1734928248030,-500.0,0.00019178,2]
[346381626,1734928248039,-500.0,0.00019178,2]
[346381627,1734928248048,-501.07957172,0.00019178,2]
[346381628,1734928248058,-88.12042828,0.00019178,2]
[346381629,1734928248069,-411.87957172,0.00019178,2]
[346381630,1734928248080,-500.0,0.00019361,2]
[346381631,1734928248089,-500.0,0.00019362,2]
[346381632,1734928248099,-500.0,0.00019452,2]
[346381633,1734928248108,-500.0,0.00019452,2]
[346381634,1734928248117,-500.0,0.00019452,2]
[346381635,1734928248126,-500.0,0.00019452,2]
[346381636,1734928248135,-16870.09565398,0.000196,2]
[346381637,1734928248146,-47805.02,0.000196,2]
[346381638,1734928248157,-975.93,0.000196,2]
[346381639,1734928248181,-317.92,0.000196,2]
[346381640,1734928248398,-70833.02922558,0.000196,2]
[346381641,1734928248419,-900.10574579,0.000196,2]
[346381642,1734928249049,-500.0,0.00019178,2]
[346381643,1734928249059,-500.0,0.00019178,2]
[346381644,1734928249069,-500.0,0.00019178,2]
[346381645,1734928249081,-500.0,0.00019361,2]
[346381646,1734928249092,-386.39893921,0.00019452,2]
[346381647,1734928249108,-246.15989448,0.00019452,2]
[346381648,1734928249118,-500.0,0.00019452,2]
[346381649,1734928249128,-500.0,0.00019452,2]
[346381650,1734928249138,-6357.92572219,0.000196,2]
[346381651,1734928249150,-1064050.74843341,0.000196,2]
[346381652,1734928249170,-330.49842,0.00019361,2]
[346381653,1734928249190,-169.50158,0.00019361,2]
[346381654,1734928249200,-1068.61074341,0.000196,2]
[346381655,1734928249211,-503.68694289,0.000196,2]
[346381656,1734928522376,1800.0,0.0002,120]
[346381658,1734928902402,154.8,0.00017479,30]
[346381659,1734929088693,153.81,0.00010137,2]
[346381660,1734929210046,450.0,0.00013,2]
[346381673,1734929431578,-170.31,0.00013699,2]
[346381674,1734929431588,-500.0,0.00015,2]
[346381675,1734929431597,-833.02,0.00015262,2]
[346381676,1734929431606,-209.0,0.000163,2]
[346381677,1734929431615,-209.0,0.0001655,2]
[346381678,1734929431625,-209.0,0.0001679,2]
[346381679,1734929431634,-777.07,0.00016887,2]
[346381680,1734929431644,-3900.3600001,0.00016957,2]
[346381681,1734929431688,-648.6250025,0.00016957,2]
[346381682,1734929431699,-490.6449974,0.00016957,2]
[346381683,1734929431709,-515.7150026,0.00017,2]
[346381684,1734929431720,-34.2849974,0.00017,2]
[346381685,1734929431730,-967.0934026,0.00017019,2]
[346381686,1734929431744,-32.9065974,0.00017019,2]
[346381687,1734929431754,-209.0,0.0001704,2]
[346381688,1734929431764,-100.2387033,0.00017142,2]
[346381689,1734929431803,-99.7612967,0.00017142,2]
[346381690,1734929431813,-300.0,0.00017169,2]
[346381691,1734929431822,-5495.47,0.0001717,2]
[346381692,1734929431831,-150.0,0.00017178,2]
[346381693,1734929431840,-2000.0,0.00017186,2]
[346381694,1734929431850,-635.15,0.00017191,2]
[346381695,1734929431859,-200.0,0.00017205,2]
[346381696,1734929431868,-209.0,0.0001729,2]
[346381697,1734929431878,-250.0,0.00017526,2]
[346381698,1734929431887,-833.02,0.00017526,2]
[346381699,1734929431896,-209.0,0.0001753,2]
[346381700,1734929431906,-209.0,0.0001753,2]
[346381701,1734929431916,-2751.0,0.00017589,2]
[346381702,1734929431925,-159.4,0.0001759,2]
[346381703,1734929431935,-159.4,0.00017598,2]
[346381704,1734929431944,-159.4,0.00017605,2]
[346381705,1734929431953,-159.4,0.00017612,2]
[346381706,1734929431962,-159.4,0.0001762,2]
[346381707,1734929431974,-159.4,0.00017627,2]
[346381708,1734929431983,-159.4,0.00017634,2]
[346381709,1734929431993,-159.4,0.00017642,2]
[346381710,1734929432002,-159.4,0.00017649,2]
[346381711,1734929432012,-159.4,0.00017656,2]
[346381712,1734929432022,-159.4,0.00017664,2]
[346381713,1734929432031,-159.4,0.00017671,2]
[346381714,1734929432041,-159.4,0.00017678,2]
[346381715,1734929432056,-150.0,0.00017694,2]
[346381716,1734929432067,-250.0,0.00017694,2]
[346381717,1734929432076,-1500.0,0.00017707,2]
[346381718,1734929432085,-209.0,0.0001778,2]
[346381720,1734929432096,-209.0,0.0001778,2]
[346381722,1734929432105,-1000.0,0.00017826,2]
[346381724,1734929432114,-23900.0,0.00017827,2]
[346381726,1734929432123,-166.82,0.00017929,2]
[346381728,1734929432132,-165.72,0.00017929,2]
[346381729,1734929432142,-250.0,0.0001793,2]
[346381730,1734929432151,-150.0,0.00018,2]
[346381731,1734929432160,-150.0,0.00018,2]
[346381732,1734929432169,-150.0,0.00018,2]
[346381733,1734929432178,-209.0,0.0001803,2]
[346381734,1734929432187,-209.0,0.0001803,2]
[346381735,1734929432200,-209.0,0.0001827,2]
[346381736,1734929432215,-209.0,0.0001827,2]
[346381737,1734929432229,-150.0,0.000184,2]
[346381738,1734929432240,-150.0,0.000185,2]
[346381739,1734929432253,-209.0,0.0001852,2]
[346381740,1734929432266,-209.0,0.0001852,2]
[346381741,1734929432280,-11546.0,0.00018608,2]
[346381742,1734929432296,-218.731,0.0001862,2]
[346381743,1734929432309,-150.0,0.00018667,2]
[346381744,1734929432321,-894.56,0.00018685,2]
[346381745,1734929432332,-420.0,0.00018749,2]
[346381746,1734929432345,-209.0,0.0001877,2]
[346381747,1734929432360,-209.0,0.0001877,2]
[346381748,1734929432375,-150.0,0.000188,2]
[346381749,1734929432389,-570.77747349,0.000189,2]
[346381750,1734929432403,-641.22154269,0.00018973,2]
[346381751,1734929432416,-500.0,0.00018973,2]
[346381752,1734929432431,-250.96807178,0.00018973,2]
[346381753,1734929432444,-570.77747343,0.00018978,2]
[346381754,1734929432457,-170.24,0.0001899,2]
[346381755,1734929432470,-222.122313,0.00018998,3]
[346381756,1734929432484,-222.122313,0.00018998,3]
[346381757,1734929432497,-222.122313,0.00018998,3]
[346381758,1734929432509,-222.122313,0.00018998,3]
[346381759,1734929432521,-222.122313,0.00018998,2]
[346381760,1734929432532,-222.122313,0.00018998,2]
[346381761,1734929432546,-222.122313,0.00018998,2]
[346381762,1734929432561,-222.122313,0.00018998,2]
[346381763,1734929432574,-265.122313,0.00018998,2]
[346381764,1734929432584,-777.07,0.00018998,2]
[346381765,1734929432595,-176.25039494,0.00018999,2]
[346381766,1734929432609,-373196.86442951,0.00019,2]
[346381767,1734929432626,-1024.99289706,0.00019,2]
[346381768,1734929432656,-4768.13790955,0.00019,2]
[346381769,1734929432670,-451.72001,0.00019,2]
[346381770,1734929432684,-618.27929359,0.00019,2]
[346381771,1734929432703,-1289.0,0.00019,2]
[346381795,1734929437557,-354516.50191581,0.00019,2]
[346381796,1734929437566,-150.0,0.00019,2]
[346381797,1734929437575,-209.0,0.0001901,2]
[346381798,1734929437585,-205.0,0.0001901,2]
[346381799,1734929437594,-209.0,0.0001901,2]
[346381800,1734929437603,-500.0,0.00019038,2]
[346381801,1734929437612,-934.47,0.00019041,2]
[346381802,1734929437622,-570.77747343,0.00019056,2]
[346381803,1734929437630,-177.08806775,0.00019078,2]
[346381804,1734929437639,-31375.3388,0.00019078,2]
[346381805,1734929437648,-570.77747343,0.00019133,2]
[346381806,1734929437658,-1000.0,0.00019146,2]
[346381807,1734929437667,-1962.940736,0.00019178,2]
[346381808,1734929437677,-500.0,0.00019178,2]
[346381809,1734929437686,-150.622576,0.00019178,2]
[346381810,1734929437695,-2141.220525,0.00019178,2]
[346381811,1734929437704,-500.0,0.00019178,2]
[346381812,1734929437714,-500.0,0.00019178,2]
[346381813,1734929437723,-500.0,0.00019178,2]
[346381814,1734929437732,-502.14872136,0.00019178,2]
[346381815,1734929437742,-500.0,0.00019178,2]
[346381816,1734929437751,-619.42678079,0.00019178,2]
[346381817,1734929437760,-500.0,0.00019178,2]
[346381818,1734929437770,-516.14,0.00019178,2]
[346381819,1734929437779,-500.0,0.00019178,2]
[346381820,1734929437789,-500.0,0.00019178,2]
[346381821,1734929437798,-500.0,0.00019178,2]
[346381822,1734929437808,-360.98497011,0.00019178,2]
[346381823,1734929437818,-502.4932337,0.00019178,2]
[346381824,1734929437827,-500.0,0.00019178,2]
[346381825,1734929437836,-500.0,0.00019178,2]
[346381826,1734929437845,-500.0,0.00019178,2]
[346381827,1734929437854,-500.0,0.00019178,2]
[346381828,1734929437863,-500.0,0.00019178,2]
[346381829,1734929437872,-383.70182401,0.00019178,2]
[346381830,1734929437881,-500.0,0.00019178,2]
[346381831,1734929437890,-500.0,0.00019178,2]
[346381832,1734929437899,-507.55672115,0.00019178,2]
[346381833,1734929437909,-500.0,0.00019178,2]
[346381834,1734929437918,-504.45921216,0.00019178,2]
[346381835,1734929437927,-500.0,0.00019178,2]
[346381836,1734929437936,-274.63050355,0.00019178,2]
[346381837,1734929437945,-829.35401626,0.00019178,2]
[346381838,1734929437955,-500.0,0.00019178,2]
[346381839,1734929437964,-500.0,0.00019178,2]
[346381840,1734929437977,-610.99752637,0.00019178,2]
[346381841,1734929437987,-500.0,0.00019178,2]
[346381842,1734929437996,-500.0,0.00019178,2]
[346381843,1734929438005,-500.0,0.00019178,2]
[346381844,1734929438017,-500.0,0.00019178,2]
[346381845,1734929438026,-500.0,0.00019178,2]
[346381846,1734929438036,-500.0,0.00019178,2]
[346381848,1734929438046,-504.45358535,0.00019178,2]
[346381850,1734929438055,-500.0,0.00019178,2]
[346381851,1734929438065,-261.38098769,0.00019178,2]
[346381852,1734929438074,-500.0,0.00019178,2]
[346381853,1734929438083,-514.41274884,0.00019178,2]
[346381854,1734929438092,-500.0,0.00019178,2]
[346381855,1734929438101,-336.17764228,0.00019178,2]
[346381856,1734929438110,-504.70482895,0.00019178,2]
[346381857,1734929438119,-500.0,0.00019178,2]
[346381858,1734929438128,-500.0,0.00019178,2]
[346381859,1734929438137,-500.0,0.00019178,2]
[346381860,1734929438147,-500.0,0.00019178,2]
[346381861,1734929438155,-500.0,0.00019178,2]
[346381862,1734929438165,-512.65088263,0.00019178,2]
[346381863,1734929438174,-500.0,0.00019178,2]
[346381864,1734929438183,-512.94951825,0.00019178,2]
[346381865,1734929438192,-349.72787418,0.00019178,2]
[346381866,1734929438201,-510.38554022,0.00019178,2]
[346381867,1734929438210,-1575.02,0.00019178,2]
[346381868,1734929438219,-500.0,0.00019178,2]
[346381869,1734929438228,-498.28756085,0.00019178,2]
[346381870,1734929438237,-500.0,0.00019178,2]
[346381871,1734929438246,-500.0,0.00019178,2]
[346381872,1734929438255,-500.0,0.00019178,2]
[346381873,1734929438264,-500.0,0.00019178,2]
[346381874,1734929438273,-500.0,0.00019178,2]
[346381875,1734929438282,-600.57832144,0.00019178,2]
[346381876,1734929438290,-500.0,0.00019178,2]
[346381877,1734929438301,-2000.0,0.00019178,15]
[346381878,1734929438311,-505.38445441,0.00019178,2]
[346381879,1734929438321,-500.0,0.00019178,2]
[346381880,1734929438330,-500.0,0.00019178,2]
[346381881,1734929438339,-501.97540963,0.00019178,2]
[346381882,1734929438348,-500.0,0.00019178,2]
[346381883,1734929438357,-507.71377718,0.00019178,2]
[346381884,1734929438367,-500.0,0.00019178,2]
[346381885,1734929438376,-500.0,0.00019178,2]
[346381886,1734929438384,-500.0,0.00019178,2]
[346381887,1734929438393,-500.0,0.00019178,2]
[346381888,1734929438403,-506.8989599,0.00019178,2]
[346381889,1734929438412,-319.66066918,0.00019178,2]
[346381890,1734929438421,-504.27605933,0.00019178,2]
[346381891,1734929438430,-501.59254946,0.00019178,2]
[346381892,1734929438439,-501.57163444,0.00019178,2]
[346381893,1734929438448,-500.0,0.00019178,2]
[346381894,1734929438458,-500.0,0.00019178,2]
[346381895,1734929438467,-500.0,0.00019178,2]
[346381896,1734929438476,-511.10701773,0.00019178,2]
[346381897,1734929438485,-500.0,0.00019178,2]
[346381898,1734929438494,-500.0,0.00019178,2]
[346381899,1734929438503,-500.0,0.00019178,2]
[346381900,1734929438512,-500.0,0.00019178,2]
[346381901,1734929438521,-500.0,0.00019178,2]
[346381902,1734929438531,-500.0,0.00019178,2]
[346381903,1734929438541,-506.16340006,0.00019178,2]
[346381904,1734929438551,-500.0,0.00019178,2]